{"text_format":"3","workbook":"xlsx","n_sheets":2,"sheets":["Spese","Relazione"],"not_rendered":{"charts":2,"images":1,"defined_names":6},"read":"whole","date_system":"1900"}

{"sheet":"Spese","index":0,"n_rows":26,"n_cols":8,"rows_kept":26,"merged":[[1,1,1,7]]}
[]
[null,"Creare il budget per i prodotti alimentari. Consultare i suggerimenti nelle celle di intestazione della tabella in basso.\nÈ possibile creare un report nel foglio di lavoro Relazione."]
[null,"Data","Categoria","Cosa","Quantità","Prezzo \nper articolo","Prezzo \n(somma)","Dove"]
[null,{"$f":"TODAY()","v":"2019-03-13"},"Dolci","Caramelle",{"v":0.25,"d":"0.3"},{"v":6,"d":"€ 6.00"},{"$f":"Spese_Mensili[[#This Row],[Prezzo \nper articolo]]*Spese_Mensili[[#This Row],[Quantità]]","v":{"v":1.5,"d":"€ 1.50"}},"Generi alimentari"]
[null,{"$f":"TODAY()","v":"2019-03-13"},"Bevande","Coca Cola",{"v":1,"d":"1.0"},{"v":1,"d":"€ 1.00"},{"$f":"Spese_Mensili[[#This Row],[Prezzo \nper articolo]]*Spese_Mensili[[#This Row],[Quantità]]","v":{"v":1,"d":"€ 1.00"}},"Fast Food"]
[null,{"$f":"TODAY()-1","v":"2019-03-12"},"Cibi pronti","Pasti",{"v":1,"d":"1.0"},{"v":28,"d":"€ 28.00"},{"$f":"Spese_Mensili[[#This Row],[Prezzo \nper articolo]]*Spese_Mensili[[#This Row],[Quantità]]","v":{"v":28,"d":"€ 28.00"}},"Fast Food"]
[null,{"$f":"TODAY()-1","v":"2019-03-12"},"Carne","Manzo",1.2,{"v":15,"d":"€ 15.00"},{"$f":"Spese_Mensili[[#This Row],[Prezzo \nper articolo]]*Spese_Mensili[[#This Row],[Quantità]]","v":{"v":18,"d":"€ 18.00"}},"Generi alimentari"]
[null,{"$f":"TODAY()-1","v":"2019-03-12"},"Alcol","Whisky",{"v":1,"d":"1.0"},{"v":25,"d":"€ 25.00"},{"$f":"Spese_Mensili[[#This Row],[Prezzo \nper articolo]]*Spese_Mensili[[#This Row],[Quantità]]","v":{"v":25,"d":"€ 25.00"}},"Generi alimentari"]
[null,{"$f":"TODAY()-2","v":"2019-03-11"},"Bevande","Bibite",{"v":6,"d":"6.0"},{"v":1,"d":"€ 1.00"},{"$f":"Spese_Mensili[[#This Row],[Prezzo \nper articolo]]*Spese_Mensili[[#This Row],[Quantità]]","v":{"v":6,"d":"€ 6.00"}},"Consegna a domicilio"]
[null,{"$f":"TODAY()-2","v":"2019-03-11"},"Cibi pronti","Pasti",{"v":1,"d":"1.0"},{"v":10,"d":"€ 10.00"},{"$f":"Spese_Mensili[[#This Row],[Prezzo \nper articolo]]*Spese_Mensili[[#This Row],[Quantità]]","v":{"v":10,"d":"€ 10.00"}},"Consegna a domicilio"]
[null,{"$f":"TODAY()-2","v":"2019-03-11"},"Frutta e verdura","Mele",{"v":2,"d":"2.0"},{"v":5,"d":"€ 5.00"},{"$f":"Spese_Mensili[[#This Row],[Prezzo \nper articolo]]*Spese_Mensili[[#This Row],[Quantità]]","v":{"v":10,"d":"€ 10.00"}},"Consegna a domicilio"]
[null,{"$f":"TODAY()-2","v":"2019-03-11"},"Bevande","Acqua",{"v":1,"d":"1.0"},{"v":1,"d":"€ 1.00"},{"$f":"Spese_Mensili[[#This Row],[Prezzo \nper articolo]]*Spese_Mensili[[#This Row],[Quantità]]","v":{"v":1,"d":"€ 1.00"}},"Generi alimentari"]
[null,{"$f":"TODAY()-3","v":"2019-03-10"},"Bevande","Coca Cola",{"v":1,"d":"1.0"},{"v":1,"d":"€ 1.00"},{"$f":"Spese_Mensili[[#This Row],[Prezzo \nper articolo]]*Spese_Mensili[[#This Row],[Quantità]]","v":{"v":1,"d":"€ 1.00"}},"Fast Food"]
[null,{"$f":"TODAY()-3","v":"2019-03-10"},"Dolci","Cioccolato",{"v":2,"d":"2.0"},{"v":3,"d":"€ 3.00"},{"$f":"Spese_Mensili[[#This Row],[Prezzo \nper articolo]]*Spese_Mensili[[#This Row],[Quantità]]","v":{"v":6,"d":"€ 6.00"}},"Generi alimentari"]
[null,{"$f":"TODAY()-3","v":"2019-03-10"},"Dolci","Caramelle",{"v":5,"d":"5.0"},{"v":1,"d":"€ 1.00"},{"$f":"Spese_Mensili[[#This Row],[Prezzo \nper articolo]]*Spese_Mensili[[#This Row],[Quantità]]","v":{"v":5,"d":"€ 5.00"}},"Generi alimentari"]
[null,{"$f":"TODAY()-3","v":"2019-03-10"},"Bevande","Acqua",{"v":2,"d":"2.0"},{"v":0.75,"d":"€ 0.75"},{"$f":"Spese_Mensili[[#This Row],[Prezzo \nper articolo]]*Spese_Mensili[[#This Row],[Quantità]]","v":{"v":1.5,"d":"€ 1.50"}},"Bar"]
[null,{"$f":"TODAY()-4","v":"2019-03-09"},"Cibi pronti","Riso",{"v":1,"d":"1.0"},{"v":3.25,"d":"€ 3.25"},{"$f":"Spese_Mensili[[#This Row],[Prezzo \nper articolo]]*Spese_Mensili[[#This Row],[Quantità]]","v":{"v":3.25,"d":"€ 3.25"}},"Ristorante"]
[null,{"$f":"TODAY()-4","v":"2019-03-09"},"Carne","Manzo",0.6,{"v":12,"d":"€ 12.00"},{"$f":"Spese_Mensili[[#This Row],[Prezzo \nper articolo]]*Spese_Mensili[[#This Row],[Quantità]]","v":{"v":7.199999999999999,"d":"€ 7.20"}},"Generi alimentari"]
[null,{"$f":"TODAY()-4","v":"2019-03-09"},"Alcol","Birra",{"v":1,"d":"1.0"},{"v":2,"d":"€ 2.00"},{"$f":"Spese_Mensili[[#This Row],[Prezzo \nper articolo]]*Spese_Mensili[[#This Row],[Quantità]]","v":{"v":2,"d":"€ 2.00"}},"Ristorante"]
[null,{"$f":"TODAY()-4","v":"2019-03-09"},"Bevande","Bibite",{"v":1,"d":"1.0"},{"v":1,"d":"€ 1.00"},{"$f":"Spese_Mensili[[#This Row],[Prezzo \nper articolo]]*Spese_Mensili[[#This Row],[Quantità]]","v":{"v":1,"d":"€ 1.00"}},"Generi alimentari"]
[null,{"$f":"TODAY()-5","v":"2019-03-08"},"Cibi pronti","Pasti",{"v":1,"d":"1.0"},{"v":10,"d":"€ 10.00"},{"$f":"Spese_Mensili[[#This Row],[Prezzo \nper articolo]]*Spese_Mensili[[#This Row],[Quantità]]","v":{"v":10,"d":"€ 10.00"}},"Fast Food"]
[null,{"$f":"TODAY()-5","v":"2019-03-08"},"Frutta e verdura","Banane",{"v":2,"d":"2.0"},{"v":3,"d":"€ 3.00"},{"$f":"Spese_Mensili[[#This Row],[Prezzo \nper articolo]]*Spese_Mensili[[#This Row],[Quantità]]","v":{"v":6,"d":"€ 6.00"}},"Consegna a domicilio"]
[null,{"$f":"TODAY()-5","v":"2019-03-08"},"Bevande","Coca Cola",{"v":1,"d":"1.0"},{"v":0.75,"d":"€ 0.75"},{"$f":"Spese_Mensili[[#This Row],[Prezzo \nper articolo]]*Spese_Mensili[[#This Row],[Quantità]]","v":{"v":0.75,"d":"€ 0.75"}},"Generi alimentari"]
[null,{"$f":"TODAY()-5","v":"2019-03-08"},"Alcol","Birra",{"v":1,"d":"1.0"},{"v":1,"d":"€ 1.00"},{"$f":"Spese_Mensili[[#This Row],[Prezzo \nper articolo]]*Spese_Mensili[[#This Row],[Quantità]]","v":{"v":1,"d":"€ 1.00"}},"Bar"]
[null,{"$f":"TODAY()-5","v":"2019-03-08"},"Pane","Panini",{"v":5,"d":"5.0"},{"v":0.2,"d":"€ 0.20"},{"$f":"Spese_Mensili[[#This Row],[Prezzo \nper articolo]]*Spese_Mensili[[#This Row],[Quantità]]","v":{"v":1,"d":"€ 1.00"}},"Generi alimentari"]
[null,"Totale",{"$nulls":4},{"$f":"SUBTOTAL(109,Spese_Mensili[Prezzo \n(somma)])","v":{"v":146.2,"d":"€ 146.20"}}]

{"sheet":"Relazione","index":1,"n_rows":29,"n_cols":6,"rows_kept":29,"merged":[[0,1,0,7],[5,1,5,2],[18,1,18,2]]}
[null,"Verificare le spese nel periodo scelto. "]
[]
[null,"Giorno di inizio",{"$f":"TODAY()-1","v":"2019-03-12"},null,"Fine giornata",{"$f":"TODAY()","v":"2019-03-13"}]
[]
[]
[null,"Spese per categoria di prodotti alimentari"]
[]
[null,"Categoria di prodotti alimentari","Uscite"]
[null,"Alcol",{"$f":"SUMIFS(Spese_Mensili[Prezzo \n(somma)],Spese_Mensili[Data],\">=\"&Data_iniziale,Spese_Mensili[Data],\"<=\"&Data_finale,Spese_Mensili[Categoria],Spese_Per_Cat_Prodotti_Alimentari[[#This Row],[Categoria di prodotti alimentari]])","v":{"v":25,"d":"€ 25.00"}}]
[null,"Pane",{"$f":"SUMIFS(Spese_Mensili[Prezzo \n(somma)],Spese_Mensili[Data],\">=\"&Data_iniziale,Spese_Mensili[Data],\"<=\"&Data_finale,Spese_Mensili[Categoria],Spese_Per_Cat_Prodotti_Alimentari[[#This Row],[Categoria di prodotti alimentari]])","v":{"v":0,"d":"€ 0.00"}}]
[null,"Bevande",{"$f":"SUMIFS(Spese_Mensili[Prezzo \n(somma)],Spese_Mensili[Data],\">=\"&Data_iniziale,Spese_Mensili[Data],\"<=\"&Data_finale,Spese_Mensili[Categoria],Spese_Per_Cat_Prodotti_Alimentari[[#This Row],[Categoria di prodotti alimentari]])","v":{"v":1,"d":"€ 1.00"}}]
[null,"Frutta e verdura",{"$f":"SUMIFS(Spese_Mensili[Prezzo \n(somma)],Spese_Mensili[Data],\">=\"&Data_iniziale,Spese_Mensili[Data],\"<=\"&Data_finale,Spese_Mensili[Categoria],Spese_Per_Cat_Prodotti_Alimentari[[#This Row],[Categoria di prodotti alimentari]])","v":{"v":0,"d":"€ 0.00"}}]
[null,"Carne",{"$f":"SUMIFS(Spese_Mensili[Prezzo \n(somma)],Spese_Mensili[Data],\">=\"&Data_iniziale,Spese_Mensili[Data],\"<=\"&Data_finale,Spese_Mensili[Categoria],Spese_Per_Cat_Prodotti_Alimentari[[#This Row],[Categoria di prodotti alimentari]])","v":{"v":18,"d":"€ 18.00"}}]
[null,"Cibi pronti",{"$f":"SUMIFS(Spese_Mensili[Prezzo \n(somma)],Spese_Mensili[Data],\">=\"&Data_iniziale,Spese_Mensili[Data],\"<=\"&Data_finale,Spese_Mensili[Categoria],Spese_Per_Cat_Prodotti_Alimentari[[#This Row],[Categoria di prodotti alimentari]])","v":{"v":28,"d":"€ 28.00"}}]
[null,"Dolci",{"$f":"SUMIFS(Spese_Mensili[Prezzo \n(somma)],Spese_Mensili[Data],\">=\"&Data_iniziale,Spese_Mensili[Data],\"<=\"&Data_finale,Spese_Mensili[Categoria],Spese_Per_Cat_Prodotti_Alimentari[[#This Row],[Categoria di prodotti alimentari]])","v":{"v":1.5,"d":"€ 1.50"}}]
[null,"Altro",{"$f":"SUMIFS(Spese_Mensili[Prezzo \n(somma)],Spese_Mensili[Data],\">=\"&Data_iniziale,Spese_Mensili[Data],\"<=\"&Data_finale,Spese_Mensili[Categoria],Spese_Per_Cat_Prodotti_Alimentari[[#This Row],[Categoria di prodotti alimentari]])","v":{"v":0,"d":"€ 0.00"}}]
[null,"Totale",{"$f":"SUBTOTAL(109,Spese_Per_Cat_Prodotti_Alimentari[Uscite])","v":{"v":73.5,"d":"€ 73.50"}}]
[]
[null,"Spese per Luogo"]
[]
[null,"Elenco luoghi","Uscite"]
[null,"Mercato",{"$f":"SUMIFS(Spese_Mensili[Prezzo \n(somma)],Spese_Mensili[Data],\">=\"&Data_iniziale,Spese_Mensili[Data],\"<=\"&Data_finale,Spese_Mensili[Dove],Spese_Per_Luoghi[[#This Row],[Elenco luoghi]])","v":{"v":0,"d":"€ 0.00"}}]
[null,"Bar",{"$f":"SUMIFS(Spese_Mensili[Prezzo \n(somma)],Spese_Mensili[Data],\">=\"&Data_iniziale,Spese_Mensili[Data],\"<=\"&Data_finale,Spese_Mensili[Dove],Spese_Per_Luoghi[[#This Row],[Elenco luoghi]])","v":{"v":0,"d":"€ 0.00"}}]
[null,"Fast Food",{"$f":"SUMIFS(Spese_Mensili[Prezzo \n(somma)],Spese_Mensili[Data],\">=\"&Data_iniziale,Spese_Mensili[Data],\"<=\"&Data_finale,Spese_Mensili[Dove],Spese_Per_Luoghi[[#This Row],[Elenco luoghi]])","v":{"v":29,"d":"€ 29.00"}}]
[null,"Generi alimentari",{"$f":"SUMIFS(Spese_Mensili[Prezzo \n(somma)],Spese_Mensili[Data],\">=\"&Data_iniziale,Spese_Mensili[Data],\"<=\"&Data_finale,Spese_Mensili[Dove],Spese_Per_Luoghi[[#This Row],[Elenco luoghi]])","v":{"v":44.5,"d":"€ 44.50"}}]
[null,"Consegna a domicilio",{"$f":"SUMIFS(Spese_Mensili[Prezzo \n(somma)],Spese_Mensili[Data],\">=\"&Data_iniziale,Spese_Mensili[Data],\"<=\"&Data_finale,Spese_Mensili[Dove],Spese_Per_Luoghi[[#This Row],[Elenco luoghi]])","v":{"v":0,"d":"€ 0.00"}}]
[null,"Ristorante",{"$f":"SUMIFS(Spese_Mensili[Prezzo \n(somma)],Spese_Mensili[Data],\">=\"&Data_iniziale,Spese_Mensili[Data],\"<=\"&Data_finale,Spese_Mensili[Dove],Spese_Per_Luoghi[[#This Row],[Elenco luoghi]])","v":{"v":0,"d":"€ 0.00"}}]
[null,"Altro",{"$f":"SUMIFS(Spese_Mensili[Prezzo \n(somma)],Spese_Mensili[Data],\">=\"&Data_iniziale,Spese_Mensili[Data],\"<=\"&Data_finale,Spese_Mensili[Dove],Spese_Per_Luoghi[[#This Row],[Elenco luoghi]])","v":{"v":0,"d":"€ 0.00"}}]
[null,"Totale",{"$f":"SUBTOTAL(109,Spese_Per_Luoghi[Uscite])","v":{"v":73.5,"d":"€ 73.50"}}]